[Event "SVK-ch Open 2018"]
[Site "Banska Stiavnica"]
[Date "2018.07.12"]
[Round "6"]
[White "Brozyna, Mateusz"]
[Black "Istok, Vojtech"]
[Result "1-0"]
[ECO "B18"]
[WhiteElo "2098"]
[BlackElo "1971"]
[Annotator "NA"]
[PlyCount "53"]
[EventDate "2018.07.07"]
[EventType "swiss"]
[EventCountry "SVK"]
[SourceTitle "playchess.com"]
[Source "ChessBase"]
[SourceQuality "1"]
[TimeControl "40/5400+30:1800+30"]

1. e4 c6 {[%emt 0:00:00]} 2. d4 {[%emt 0:00:00]} d5 {[%emt 0:00:00]} 3. Nc3 {[%emt 0:00:00]} dxe4 {[%emt 0:00:00]} 4. Nxe4 {[%emt 0:00:00]} Bf5 {[%emt 0:00:00]} 5. Ng3 {[%emt 0:00:05]} Bg6 {[%emt 0:00:00]} 6. Nh3 {[%emt 0:00:05]} e6 {[%emt 0:02:06]} 7. Nf4 {[%emt 0:00:40]} Bd6 {[%emt 0:00:34]} 8. Nfh5 {[%emt 0:00:10]} Kf8 {[%emt 0:04:20]} 9. Be2 {[%emt 0:00:26]} Nf6 {[%emt 0:01:08]} 10. O-O {[%emt 0:06:35]} Nbd7 {[%emt 0:03:33]} 11. Bg5 {[%emt 0:17:05]} Qa5 {[%emt 0:07:11]} 12. Bf4 {[%emt 0:04:57]} Bxf4 {[%emt 0:01:17]} 13. Nxf4 {[%emt 0:00:03]} Rd8 {[%emt 0:03:07]} 14. c4 {[%emt 0:05:44]} e5 {[%emt 0:07:10]} 15. dxe5 {[%emt 0:01:24]} Nxe5 {[%emt 0:01:50]} 16. Qb3 {[%emt 0:00:19]} Qb6 {[%emt 0:00:53]} 17. Qa3+ {[%emt 0:02:49]} c5 {[%emt 0:00:05]} 18. Rad1 {[%emt 0:01:00]} Ke7 {[%emt 0:07:43]} 19. Qe3 {[%emt 0:01:15]} Qxb2 {[%emt 0:03:46]} 20. Nxg6+ {[%emt 0:01:11]} hxg6 {[%emt 0:00:10]} 21. f4 {[%emt 0:00:25]} Nfd7 {[%emt 0:07:07]} 22. fxe5 {[%emt 0:00:29]} Nxe5 {[%emt 0:00:48]} 23. Qxc5+ {[%emt 0:00:08]} Ke6 {[%emt 0:00:09]} 24. Ne4 {[%emt 0:02:10]} Rxd1 {[%emt 0:02:13]} 25. Ng5+ {[%emt 0:00:25]} Kd7 {[%emt 0:02:02]} 26. Rxd1+ {[%emt 0:00:30]} Ke8 {[%emt 0:00:06]} 27. Qc8+ {[%emt 0:04:18]} 1-0

[Event "SVK-ch Open 2018"]
[Site "Banska Stiavnica"]
[Date "2018.07.12"]
[Round "6"]
[White "Kerdik, Adam"]
[Black "Kostolansky, Sebastian Lukas"]
[Result "1/2-1/2"]
[ECO "E61"]
[WhiteElo "2091"]
[BlackElo "2197"]
[Annotator "NA"]
[PlyCount "194"]
[EventDate "2018.07.07"]
[EventType "swiss"]
[EventCountry "SVK"]
[SourceTitle "playchess.com"]
[Source "ChessBase"]
[SourceQuality "1"]
[TimeControl "40/5400+30:1800+30"]

1. d4 {[%emt 0:00:00]} Nf6 {[%emt 0:00:00]} 2. c4 {[%emt 0:00:00]} g6 {[%emt 0:00:18]} 3. Nc3 {[%emt 0:00:01]} Bg7 {[%emt 0:00:06]} 4. Nf3 {[%emt 0:00:46]} d6 {[%emt 0:00:06]} 5. Bg5 {[%emt 0:01:23]} O-O {[%emt 0:01:11]} 6. e3 {[%emt 0:00:19]} Nbd7 {[%emt 0:14:00]} 7. Be2 {[%emt 0:01:19]} c5 {[%emt 0:01:06]} 8. O-O {[%emt 0:05:14]} b6 {[%emt 0:03:51]} 9. d5 {[%emt 0:10:14]} Bb7 {[%emt 0:11:08]} 10. a4 {[%emt 0:06:11]} a6 {[%emt 0:09:08]} 11. e4 {[%emt 0:07:47]} h6 {[%emt 0:10:50]} 12. Bf4 {[%emt 0:06:39]} Qc7 {[%emt 0:01:04]} 13. h3 {[%emt 0:03:12]} Rad8 {[%emt 0:02:55]} 14. Bh2 {[%emt 0:05:12]} Rfe8 {[%emt 0:02:24]} 15. Qc2 {[%emt 0:09:44]} e5 {[%emt 0:09:15]} 16. dxe6 {[%emt 0:04:16]} fxe6 {[%emt 0:04:08]} 17. e5 {[%emt 0:01:32]} dxe5 {[%emt 0:11:25]} 18. Qxg6 {[%emt 0:01:10]} Nf8 {[%emt 0:02:31]} 19. Bxe5 {[%emt 0:05:35]} Qxe5 {[%emt 0:00:23]} 20. Qxg7+ {[%emt 0:01:15]} Kxg7 {[%emt 0:00:06]} 21. Nxe5 {[%emt 0:00:12]} Ng6 {[%emt 0:01:16]} 22. Bf3 {[%emt 0:09:44]} Nxe5 {[%emt 0:03:30]} 23. Bxb7 {[%emt 0:01:49]} a5 {[%emt 0:01:25]} 24. Rfe1 {[%emt 0:04:00]} Nxc4 {[%emt 0:01:24]} 25. Bc6 {[%emt 0:00:13]} Re7 {[%emt 0:00:58]} 26. Re2 {[%emt 0:01:34]} Kf7 {[%emt 0:04:37]} 27. Bb5 {[%emt 0:03:43]} Nd6 {[%emt 0:00:32]} 28. Rd1 {[%emt 0:00:33]} Nd5 {[%emt 0:01:04]} 29. Bc6 {[%emt 0:05:41]} Nxc3 {[%emt 0:02:27]} 30. bxc3 {[%emt 0:00:07]} Nb7 {[%emt 0:00:13]} 31. Rb1 {[%emt 0:03:15]} Nd6 {[%emt 0:01:24]} 32. Rxb6 {[%emt 0:00:34]} Nc4 {[%emt 0:00:13]} 33. Rb5 {[%emt 0:01:02]} Rc7 {[%emt 0:00:16]} 34. Bf3 {[%emt 0:01:50]} Rd3 {[%emt 0:00:25]} 35. Bg4 {[%emt 0:00:26]} e5 {[%emt 0:00:39]} 36. Rb3 {[%emt 0:00:54]} Rd1+ {[%emt 0:00:24]} 37. Kh2 {[%emt 0:00:10]} Ra1 {[%emt 0:00:07]} 38. f4 {[%emt 0:00:38]} e4 {[%emt 0:00:31]} 39. Rb5 {[%emt 0:00:44]} e3 {[%emt 0:00:18]} 40. Bf3 {[%emt 0:00:26]} Nd2 {[%emt 0:01:16]} 41. Bd5+ {[%emt 0:03:33]} Kg7 {[%emt 0:11:26]} 42. g3 {[%emt 0:03:52]} Ra3 {[%emt 0:02:39]} 43. Kg2 {[%emt 0:05:56]} Rxc3 {[%emt 0:01:04]} 44. f5 {[%emt 0:08:25]} Rd3 {[%emt 0:03:40]} 45. Be6 {[%emt 0:01:32]} c4 {[%emt 0:04:54]} 46. Rb6 {[%emt 0:00:44]} Ne4 {[%emt 0:02:18]} 47. Kf3 {[%emt 0:03:33]} Ng5+ {[%emt 0:01:50]} 48. Kf4 {[%emt 0:00:32]} Nxe6+ {[%emt 0:01:37]} 49. fxe6 {[%emt 0:01:25]} c3 {[%emt 0:00:09]} 50. Rb1 {[%emt 0:01:54]} Rc4+ {[%emt 0:00:52]} 51. Kf3 {[%emt 0:00:24]} Kf6 {[%emt 0:01:47]} 52. Rc1 {[%emt 0:01:24]} Rxa4 {[%emt 0:00:57]} 53. Rxe3 {[%emt 0:00:42]} Rxe3+ {[%emt 0:00:11]} 54. Kxe3 {[%emt 0:00:04]} Ra3 {[%emt 0:00:17]} 55. Rc2 {[%emt 0:01:12]} Kxe6 {[%emt 0:00:18]} 56. Kd4 {[%emt 0:01:17]} Kf5 {[%emt 0:01:45]} 57. Rf2+ {[%emt 0:00:32]} Kg5 {[%emt 0:00:13]} 58. Rc2 {[%emt 0:00:44]} a4 {[%emt 0:01:09]} 59. Kd3 {[%emt 0:00:49]} Rb3 {[%emt 0:00:34]} 60. Kc4 {[%emt 0:00:36]} Kf5 {[%emt 0:00:36]} 61. Kd3 {[%emt 0:00:32]} Ke5 {[%emt 0:01:41]} 62. Re2+ {[%emt 0:01:13]} Kf5 {[%emt 0:00:44]} 63. Rf2+ {[%emt 0:00:19]} Kg5 {[%emt 0:00:32]} 64. Rc2 {[%emt 0:00:12]} Kf5 {[%emt 0:01:03]} 65. Rf2+ {[%emt 0:00:12]} Kg5 {[%emt 0:00:03]} 66. Rc2 {[%emt 0:00:03]} a3 {[%emt 0:00:29]} 67. Kc4 {[%emt 0:01:48]} a2 {[%emt 0:01:08]} 68. Rxa2 {[%emt 0:00:18]} c2 {[%emt 0:00:05]} 69. Rxc2 {[%emt 0:00:46]} Rxg3 {[%emt 0:00:06]} 70. Kd4 {[%emt 0:00:22]} Rxh3 {[%emt 0:00:24]} 71. Ke4 {[%emt 0:00:24]} Rg3 {[%emt 0:01:14]} 72. Rc5+ {[%emt 0:00:39]} Kg4 {[%emt 0:00:28]} 73. Rc8 {[%emt 0:00:30]} h5 {[%emt 0:00:13]} 74. Rg8+ {[%emt 0:00:20]} Kh3 {[%emt 0:00:06]} 75. Rh8 {[%emt 0:00:23]} Rg5 {[%emt 0:00:45]} 76. Kf4 {[%emt 0:00:40]} Ra5 {[%emt 0:00:09]} 77. Rh7 {[%emt 0:00:37]} h4 {[%emt 0:00:15]} 78. Kf3 {[%emt 0:00:29]} Ra4 {[%emt 0:00:48]} 79. Kf2 {[%emt 0:00:23]} Kh2 {[%emt 0:00:09]} 80. Rf7 {[%emt 0:00:42]} h3 {[%emt 0:00:47]} 81. Rf8 {[%emt 0:00:27]} Ra2+ {[%emt 0:00:13]} 82. Kf1 {[%emt 0:00:20]} Ra1+ {[%emt 0:00:26]} 83. Kf2 {[%emt 0:00:16]} Rg1 {[%emt 0:00:11]} 84. Rf7 {[%emt 0:00:30]} Rg2+ {[%emt 0:00:09]} 85. Kf1 {[%emt 0:00:18]} Kh1 {[%emt 0:00:27]} 86. Rh7 {[%emt 0:00:58]} Rg3 {[%emt 0:00:09]} 87. Kf2 {[%emt 0:00:14]} Ra3 {[%emt 0:00:09]} 88. Rh8 {[%emt 0:00:27]} Kh2 {[%emt 0:00:15]} 89. Rh7 {[%emt 0:00:24]} Ra2+ {[%emt 0:00:34]} 90. Kf1 {[%emt 0:00:18]} Kg3 {[%emt 0:00:06]} 91. Rg7+ {[%emt 0:00:15]} Kf3 {[%emt 0:00:22]} 92. Rf7+ {[%emt 0:00:08]} Kg4 {[%emt 0:00:13]} 93. Rg7+ {[%emt 0:00:19]} Kf5 {[%emt 0:00:07]} 94. Kg1 {[%emt 0:00:24]} h2+ {[%emt 0:00:18]} 95. Kh1 {[%emt 0:00:09]} Kf4 {[%emt 0:00:24]} 96. Rg2 {[%emt 0:00:22]} Ra8 {[%emt 0:00:16]} 97. Kxh2 {[%emt 0:00:40]} Rh8+ {[%emt 0:00:14]} 1/2-1/2

[Event "SVK-ch Open 2018"]
[Site "Banska Stiavnica"]
[Date "2018.07.12"]
[Round "6"]
[White "Pniaczek, Marek"]
[Black "Demeter, Peter"]
[Result "1/2-1/2"]
[ECO "B09"]
[WhiteElo "2082"]
[BlackElo "2146"]
[Annotator "NA"]
[PlyCount "123"]
[EventDate "2018.07.07"]
[EventType "swiss"]
[EventCountry "SVK"]
[SourceTitle "playchess.com"]
[Source "ChessBase"]
[SourceQuality "1"]
[TimeControl "40/5400+30:1800+30"]

1. e4 {[%emt 0:00:00]} d6 {[%emt 0:03:44]} 2. d4 {[%emt 0:00:00]} Nf6 {[%emt 0:00:04]} 3. Nc3 {[%emt 0:00:00]} g6 {[%emt 0:00:04]} 4. f4 {[%emt 0:00:00]} Bg7 {[%emt 0:00:07]} 5. Nf3 {[%emt 0:00:00]} O-O {[%emt 0:00:59]} 6. Bd3 {[%emt 0:00:08]} Bg4 {[%emt 0:01:35]} 7. e5 {[%emt 0:14:06]} dxe5 {[%emt 0:05:22]} 8. fxe5 {[%emt 0:02:17]} Nd5 {[%emt 0:00:38]} 9. Nxd5 {[%emt 0:00:41]} Qxd5 {[%emt 0:00:07]} 10. c3 {[%emt 0:00:12]} c5 {[%emt 0:02:47]} 11. Be3 {[%emt 0:06:35]} cxd4 {[%emt 0:01:43]} 12. cxd4 {[%emt 0:00:42]} Nc6 {[%emt 0:00:38]} 13. Be2 {[%emt 0:05:01]} Rfd8 {[%emt 0:08:13]} 14. O-O {[%emt 0:00:30]} f6 {[%emt 0:13:43]} 15. Rc1 {[%emt 0:09:38]} Be6 {[%emt 0:06:46]} 16. Bc4 {[%emt 0:19:00]} Qd7 {[%emt 0:00:11]} 17. exf6 {[%emt 0:00:27]} exf6 {[%emt 0:00:42]} 18. Re1 {[%emt 0:06:10]} Bxc4 {[%emt 0:04:52]} 19. Rxc4 {[%emt 0:00:05]} Ne7 {[%emt 0:00:19]} 20. Qb3 {[%emt 0:02:43]} Nd5 {[%emt 0:01:12]} 21. Bf2 {[%emt 0:00:19]} Rac8 {[%emt 0:03:38]} 22. Rec1 {[%emt 0:00:32]} Rxc4 {[%emt 0:00:07]} 23. Qxc4 {[%emt 0:00:30]} Re8 {[%emt 0:01:44]} 24. Re1 {[%emt 0:07:31]} Rc8 {[%emt 0:02:39]} 25. Qb3 {[%emt 0:00:51]} Bf8 {[%emt 0:01:31]} 26. a3 {[%emt 0:01:25]} Kg7 {[%emt 0:01:39]} 27. Bg3 {[%emt 0:02:55]} Be7 {[%emt 0:01:14]} 28. h3 {[%emt 0:01:14]} Bd8 {[%emt 0:00:14]} 29. Kh1 {[%emt 0:02:16]} Bb6 {[%emt 0:01:24]} 30. Qd3 {[%emt 0:01:37]} Re8 {[%emt 0:01:52]} 31. Re2 {[%emt 0:01:04]} Rxe2 {[%emt 0:02:09]} 32. Qxe2 {[%emt 0:00:07]} Kf7 {[%emt 0:00:07]} 33. Kg1 {[%emt 0:07:49]} Qe6 {[%emt 0:00:24]} 34. Kf2 {[%emt 0:00:43]} Ne7 {[%emt 0:03:07]} 35. Qxe6+ {[%emt 0:02:00]} Kxe6 {[%emt 0:00:07]} 36. Ke2 {[%emt 0:00:07]} Kd5 {[%emt 0:04:28]} 37. Kd3 {[%emt 0:00:07]} g5 {[%emt 0:01:21]} 38. Bf2 {[%emt 0:02:12]} h5 {[%emt 0:00:48]} 39. Ne1 {[%emt 0:03:19]} Ke6 {[%emt 0:04:43]} 40. Kc4 {[%emt 0:03:23]} h4 {[%emt 0:03:54]} 41. Nd3 {[%emt 0:31:30]} Nd5 {[%emt 0:31:27]} 42. b4 {[%emt 0:00:00]} a6 {[%emt 0:00:00]} 43. a4 {[%emt 0:00:00]} Ba7 {[%emt 0:00:00]} 44. a5 {[%emt 0:00:00]} Kd6 {[%emt 0:00:00]} 45. b5 {[%emt 0:00:00]} axb5+ {[%emt 0:00:00]} 46. Kxb5 {[%emt 0:00:00]} Nc3+ {[%emt 0:00:00]} 47. Kc4 {[%emt 0:00:00]} Ne2 {[%emt 0:00:00]} 48. Be3 {[%emt 0:00:00]} Ng3 {[%emt 0:00:00]} 49. Bd2 {[%emt 0:00:00]} Nf5 {[%emt 0:00:00]} 50. Bb4+ {[%emt 0:00:00]} Kc7 {[%emt 0:00:00]} 51. Kd5 {[%emt 0:00:00]} Ne3+ {[%emt 0:00:00]} 52. Ke4 {[%emt 0:00:00]} Nxg2 {[%emt 0:00:20]} 53. Kf3 {[%emt 0:00:00]} Nf4 {[%emt 0:00:15]} 54. Nxf4 {[%emt 0:00:00]} gxf4 {[%emt 0:00:03]} 55. Ke4 {[%emt 0:00:31]} f3 {[%emt 0:02:33]} 56. Be1 {[%emt 0:01:15]} f5+ {[%emt 0:00:35]} 57. Kxf3 {[%emt 0:01:59]} Bxd4 {[%emt 0:00:25]} 58. Kf4 {[%emt 0:02:01]} Bf6 {[%emt 0:02:16]} 59. Kxf5 {[%emt 0:00:46]} Bd8 {[%emt 0:00:23]} 60. Kg4 {[%emt 0:00:23]} Kd7 {[%emt 0:00:56]} 61. Bxh4 {[%emt 0:00:22]} Bxa5 {[%emt 0:00:06]} 62. Kf5 {[%emt 0:01:32]} 1/2-1/2

[Event "SVK-ch Open 2018"]
[Site "Banska Stiavnica"]
[Date "2018.07.12"]
[Round "6"]
[White "Sosovicka, Jakub"]
[Black "Sarkozi, Szabolcs"]
[Result "1-0"]
[ECO "C54"]
[WhiteElo "2078"]
[BlackElo "1808"]
[Annotator "NA"]
[PlyCount "51"]
[EventDate "2018.07.07"]
[EventType "swiss"]
[EventCountry "SVK"]
[SourceTitle "playchess.com"]
[Source "ChessBase"]
[SourceQuality "1"]
[TimeControl "40/5400+30:1800+30"]

1. e4 {[%emt 0:00:00]} Nc6 {[%emt 0:01:55]} 2. Nf3 {[%emt 0:00:00]} e5 {[%emt 0:00:03]} 3. Bc4 {[%emt 0:00:00]} Bc5 {[%emt 0:00:03]} 4. c3 {[%emt 0:00:29]} Nf6 {[%emt 0:00:09]} 5. d3 {[%emt 0:00:26]} d6 {[%emt 0:01:24]} 6. O-O {[%emt 0:00:38]} O-O {[%emt 0:04:26]} 7. a4 {[%emt 0:00:51]} a5 {[%emt 0:01:27]} 8. Bb3 {[%emt 0:04:08]} Be6 {[%emt 0:10:46]} 9. Bc2 {[%emt 0:03:23]} d5 {[%emt 0:08:08]} 10. exd5 {[%emt 0:00:55]} Qxd5 {[%emt 0:02:11]} 11. Bg5 {[%emt 0:09:51]} Be7 {[%emt 0:31:13]} 12. Nbd2 {[%emt 0:06:59]} h6 {[%emt 0:09:40]} 13. Bh4 {[%emt 0:02:10]} g5 {[%emt 0:04:40]} 14. Bg3 {[%emt 0:02:02]} Bg4 {[%emt 0:01:36]} 15. Re1 {[%emt 0:08:06]} Rad8 {[%emt 0:01:48]} 16. Qb1 {[%emt 0:08:12]} Bxf3 {[%emt 0:06:01]} 17. Nxf3 {[%emt 0:01:34]} Nd7 {[%emt 0:00:07]} 18. Qd1 {[%emt 0:16:01]} Bf6 {[%emt 0:02:10]} 19. d4 {[%emt 0:06:31]} Nb6 {[%emt 0:05:42]} 20. Qd3 {[%emt 0:01:50]} Rfe8 {[%emt 0:04:28]} 21. Qh7+ {[%emt 0:03:38]} Kf8 {[%emt 0:00:01]} 22. dxe5 {[%emt 0:08:52]} Nxe5 {[%emt 0:00:32]} 23. Bxe5 {[%emt 0:00:32]} Bxe5 {[%emt 0:00:52]} 24. Nxe5 {[%emt 0:00:10]} Rxe5 {[%emt 0:00:22]} 25. Qh8+ {[%emt 0:00:13]} Ke7 {[%emt 0:00:28]} 26. Rxe5+ {[%emt 0:00:07]} 1-0

[Event "SVK-ch Open 2018"]
[Site "Banska Stiavnica"]
[Date "2018.07.12"]
[Round "6"]
[White "Volcko, Richard"]
[Black "Bango, Dominik"]
[Result "1-0"]
[ECO "C65"]
[WhiteElo "2068"]
[BlackElo "1835"]
[Annotator "NA"]
[PlyCount "103"]
[EventDate "2018.07.07"]
[EventType "swiss"]
[EventCountry "SVK"]
[SourceTitle "playchess.com"]
[Source "ChessBase"]
[SourceQuality "1"]
[TimeControl "40/5400+30:1800+30"]

1. e4 {[%emt 0:00:00]} e5 {[%emt 0:00:00]} 2. Nf3 {[%emt 0:00:00]} Nc6 {[%emt 0:00:00]} 3. Bb5 {[%emt 0:00:00]} Nf6 {[%emt 0:00:00]} 4. O-O {[%emt 0:00:00]} Bc5 {[%emt 0:00:00]} 5. c3 {[%emt 0:01:42]} O-O {[%emt 0:01:17]} 6. d4 {[%emt 0:04:02]} Bb6 {[%emt 0:00:11]} 7. Re1 {[%emt 0:03:34]} d6 {[%emt 0:00:55]} 8. h3 {[%emt 0:04:22]} Ne7 {[%emt 0:14:25]} 9. Nbd2 {[%emt 0:08:23]} c6 {[%emt 0:01:13]} 10. Bd3 {[%emt 0:02:25]} Ng6 {[%emt 0:00:59]} 11. Nf1 {[%emt 0:06:08]} Nh5 {[%emt 0:10:45]} 12. Bc2 {[%emt 0:06:13]} Nhf4 {[%emt 0:02:25]} 13. Ng3 {[%emt 0:07:20]} f6 {[%emt 0:37:17]} 14. Be3 {[%emt 0:04:50]} Be6 {[%emt 0:10:13]} 15. Qd2 {[%emt 0:12:10]} Bc7 {[%emt 0:05:46]} 16. Ne2 {[%emt 0:15:43]} Nxe2+ {[%emt 0:03:49]} 17. Rxe2 {[%emt 0:00:39]} Qd7 {[%emt 0:00:44]} 18. Bb3 {[%emt 0:06:53]} Bxb3 {[%emt 0:05:00]} 19. axb3 {[%emt 0:00:07]} Qf7 {[%emt 0:00:57]} 20. c4 {[%emt 0:04:02]} a6 {[%emt 0:01:33]} 21. Rd1 {[%emt 0:02:53]} Rfd8 {[%emt 0:01:11]} 22. d5 {[%emt 0:00:21]} c5 {[%emt 0:00:36]} 23. b4 {[%emt 0:00:56]} b6 {[%emt 0:00:49]} 24. bxc5 {[%emt 0:00:11]} bxc5 {[%emt 0:00:07]} 25. b4 {[%emt 0:00:23]} cxb4 {[%emt 0:00:48]} 26. Qxb4 {[%emt 0:00:10]} Rdb8 {[%emt 0:00:31]} 27. Qa3 {[%emt 0:00:56]} Nf8 {[%emt 0:01:15]} 28. c5 {[%emt 0:00:21]} dxc5 {[%emt 0:00:29]} 29. Bxc5 {[%emt 0:00:47]} Nd7 {[%emt 0:00:05]} 30. Be3 {[%emt 0:02:43]} Qf8 {[%emt 0:00:59]} 31. d6 {[%emt 0:01:15]} Bb6 {[%emt 0:00:16]} 32. Bxb6 {[%emt 0:01:15]} Rxb6 {[%emt 0:00:13]} 33. Rc2 {[%emt 0:00:38]} Rc8 {[%emt 0:01:01]} 34. Qa2+ {[%emt 0:01:19]} Kh8 {[%emt 0:00:06]} 35. Rxc8 {[%emt 0:00:41]} Qxc8 {[%emt 0:00:04]} 36. Nh4 {[%emt 0:01:12]} g6 {[%emt 0:01:21]} 37. Qe6 {[%emt 0:01:07]} Rc6 {[%emt 0:00:37]} 38. Rd3 {[%emt 0:00:41]} Rc3 {[%emt 0:00:26]} 39. Rxc3 {[%emt 0:00:16]} Qxc3 {[%emt 0:00:04]} 40. Qe8+ {[%emt 0:00:04]} Kg7 {[%emt 0:00:09]} 41. Qxd7+ {[%emt 0:30:07]} Kh6 {[%emt 0:30:18]} 42. Kh2 {[%emt 0:02:01]} Qd4 {[%emt 0:01:24]} 43. Nf3 {[%emt 0:00:54]} Qxe4 {[%emt 0:00:34]} 44. Qg4 {[%emt 0:00:12]} Qd5 {[%emt 0:00:00]} 45. Qd7 {[%emt 0:00:00]} e4 {[%emt 0:00:00]} 46. Qe7 {[%emt 0:00:00]} exf3 {[%emt 0:00:00]} 47. d7 {[%emt 0:00:00]} fxg2 {[%emt 0:00:00]} 48. d8=Q {[%emt 0:00:00]} g1=Q+ {[%emt 0:00:00]} 49. Kxg1 {[%emt 0:00:00]} Qg5+ {[%emt 0:00:00]} 50. Kf1 {[%emt 0:00:00]} Qc1+ {[%emt 0:00:00]} 51. Ke2 {[%emt 0:00:00]} Qc4+ {[%emt 0:00:00]} 52. Qd3 {[%emt 0:00:00]} 1-0

[Event "SVK-ch Open 2018"]
[Site "Banska Stiavnica"]
[Date "2018.07.12"]
[Round "6"]
[White "Ferkova, Dominika"]
[Black "Redzisz, Michal"]
[Result "1-0"]
[ECO "E29"]
[WhiteElo "2053"]
[BlackElo "1937"]
[Annotator "NA"]
[PlyCount "55"]
[EventDate "2018.07.07"]
[EventType "swiss"]
[EventCountry "SVK"]
[SourceTitle "playchess.com"]
[Source "ChessBase"]
[SourceQuality "1"]
[TimeControl "40/5400+30:1800+30"]

1. d4 {[%emt 0:00:00]} Nf6 {[%emt 0:00:00]} 2. c4 {[%emt 0:00:00]} e6 {[%emt 0:00:00]} 3. Nc3 {[%emt 0:00:00]} Bb4 {[%emt 0:00:00]} 4. a3 {[%emt 0:00:00]} Bxc3+ {[%emt 0:00:00]} 5. bxc3 {[%emt 0:00:02]} c5 {[%emt 0:00:00]} 6. e3 {[%emt 0:00:08]} Nc6 {[%emt 0:00:35]} 7. Bd3 {[%emt 0:00:28]} O-O {[%emt 0:01:45]} 8. Ne2 {[%emt 0:00:15]} b6 {[%emt 0:00:14]} 9. O-O {[%emt 0:01:19]} Ba6 {[%emt 0:05:43]} 10. e4 {[%emt 0:00:11]} e5 {[%emt 0:00:28]} 11. d5 {[%emt 0:07:45]} Na5 {[%emt 0:00:49]} 12. f4 {[%emt 0:01:08]} Bxc4 {[%emt 0:15:17]} 13. Ng3 {[%emt 0:11:09]} Bxd3 {[%emt 0:13:31]} 14. Qxd3 {[%emt 0:00:07]} Nb3 {[%emt 0:00:34]} 15. Rb1 {[%emt 0:12:19]} Nxc1 {[%emt 0:00:50]} 16. Rbxc1 {[%emt 0:00:00]} Re8 {[%emt 0:23:06]} 17. Nf5 {[%emt 0:12:01]} d6 {[%emt 0:03:03]} 18. Rf3 {[%emt 0:04:06]} g6 {[%emt 0:12:46]} 19. Nh6+ {[%emt 0:05:42]} Kg7 {[%emt 0:00:08]} 20. fxe5 {[%emt 0:00:14]} Rxe5 {[%emt 0:00:34]} 21. Rcf1 {[%emt 0:00:18]} Kxh6 {[%emt 0:11:40]} 22. Rxf6 {[%emt 0:00:34]} Re7 {[%emt 0:07:25]} 23. Rxf7 {[%emt 0:01:36]} Rxf7 {[%emt 0:00:05]} 24. Rxf7 {[%emt 0:00:06]} Qg5 {[%emt 0:00:49]} 25. Qh3+ {[%emt 0:02:58]} Qh5 {[%emt 0:00:04]} 26. Qe3+ {[%emt 0:00:03]} g5 {[%emt 0:00:07]} 27. Qf3 {[%emt 0:03:19]} Re8 {[%emt 0:01:49]} 28. Rxh7+ {[%emt 0:00:30]} 1-0

[Event "SVK-ch Open 2018"]
[Site "Banska Stiavnica"]
[Date "2018.07.12"]
[Round "6"]
[White "Tepper, Frantisek"]
[Black "Hyll, Jan"]
[Result "1/2-1/2"]
[ECO "B01"]
[WhiteElo "2050"]
[BlackElo "1915"]
[Annotator "NA"]
[PlyCount "51"]
[EventDate "2018.07.07"]
[EventType "swiss"]
[EventCountry "SVK"]
[SourceTitle "playchess.com"]
[Source "ChessBase"]
[SourceQuality "1"]
[TimeControl "40/5400+30:1800+30"]

1. e4 {[%emt 0:00:00]} d5 {[%emt 0:00:00]} 2. exd5 {[%emt 0:00:00]} Qxd5 {[%emt 0:00:00]} 3. Nc3 {[%emt 0:00:00]} Qd8 {[%emt 0:00:00]} 4. d4 {[%emt 0:00:10]} Nf6 {[%emt 0:00:00]} 5. Nf3 {[%emt 0:00:27]} c6 {[%emt 0:01:17]} 6. h3 {[%emt 0:00:56]} Bf5 {[%emt 0:02:19]} 7. Nh4 {[%emt 0:07:10]} Bg6 {[%emt 0:03:44]} 8. Nxg6 {[%emt 0:00:36]} hxg6 {[%emt 0:00:01]} 9. Be3 {[%emt 0:00:16]} e6 {[%emt 0:00:57]} 10. a3 {[%emt 0:01:33]} Nbd7 {[%emt 0:00:12]} 11. Qd2 {[%emt 0:01:33]} Nb6 {[%emt 0:04:35]} 12. Be2 {[%emt 0:04:55]} Nbd5 {[%emt 0:01:00]} 13. Nxd5 {[%emt 0:00:11]} Nxd5 {[%emt 0:00:14]} 14. O-O-O {[%emt 0:05:33]} b5 {[%emt 0:03:02]} 15. Bf3 {[%emt 0:04:08]} Qb6 {[%emt 0:01:31]} 16. Bxd5 {[%emt 0:01:49]} cxd5 {[%emt 0:00:28]} 17. Kb1 {[%emt 0:00:34]} a5 {[%emt 0:02:02]} 18. Qd3 {[%emt 0:04:23]} Bd6 {[%emt 0:03:36]} 19. Ka2 {[%emt 0:01:38]} Kd7 {[%emt 0:01:16]} 20. g4 {[%emt 0:01:50]} Qc6 {[%emt 0:00:23]} 21. b3 {[%emt 0:01:18]} Rhc8 {[%emt 0:01:07]} 22. Rc1 {[%emt 0:00:09]} Rcb8 {[%emt 0:06:28]} 23. h4 {[%emt 0:00:37]} Be7 {[%emt 0:00:14]} 24. Kb2 {[%emt 0:00:10]} a4 {[%emt 0:02:35]} 25. b4 {[%emt 0:02:35]} Rh8 {[%emt 0:03:40]} 26. h5 {[%emt 0:04:13]} 1/2-1/2

[Event "SVK-ch Open 2018"]
[Site "Banska Stiavnica"]
[Date "2018.07.12"]
[Round "6"]
[White "Panko, Radoslav"]
[Black "Furman, Slavomir"]
[Result "1-0"]
[ECO "A00"]
[WhiteElo "2049"]
[BlackElo "1768"]
[Annotator "NA"]
[PlyCount "75"]
[EventDate "2018.07.07"]
[EventType "swiss"]
[EventCountry "SVK"]
[SourceTitle "playchess.com"]
[Source "ChessBase"]
[SourceQuality "1"]
[TimeControl "40/5400+30:1800+30"]

1. Nc3 {[%emt 0:00:00]} d5 {[%emt 0:10:26]} 2. e4 {[%emt 0:00:00]} e6 {[%emt 0:00:10]} 3. d4 {[%emt 0:01:14]} Nc6 {[%emt 0:01:37]} 4. Nf3 {[%emt 0:04:46]} Nf6 {[%emt 0:00:15]} 5. e5 {[%emt 0:03:18]} Ne4 {[%emt 0:00:08]} 6. Bd3 {[%emt 0:00:30]} Bb4 {[%emt 0:00:28]} 7. Bd2 {[%emt 0:05:24]} Nxd2 {[%emt 0:00:32]} 8. Qxd2 {[%emt 0:00:04]} Be7 {[%emt 0:07:40]} 9. a3 {[%emt 0:02:20]} Bd7 {[%emt 0:02:01]} 10. b4 {[%emt 0:01:56]} a5 {[%emt 0:05:39]} 11. b5 {[%emt 0:00:48]} Nb8 {[%emt 0:00:07]} 12. O-O {[%emt 0:04:13]} c5 {[%emt 0:00:49]} 13. Rfb1 {[%emt 0:02:11]} c4 {[%emt 0:03:44]} 14. Bf1 {[%emt 0:00:15]} a4 {[%emt 0:00:14]} 15. g3 {[%emt 0:02:01]} Qb6 {[%emt 0:00:46]} 16. Ra2 {[%emt 0:01:18]} Ra5 {[%emt 0:01:01]} 17. h4 {[%emt 0:00:18]} O-O {[%emt 0:02:43]} 18. Nh2 {[%emt 0:02:48]} Bxb5 {[%emt 0:03:45]} 19. Rab2 {[%emt 0:02:00]} Bxa3 {[%emt 0:00:09]} 20. Rxb5 {[%emt 0:00:12]} Rxb5 {[%emt 0:00:19]} 21. Rxb5 {[%emt 0:00:08]} Qa6 {[%emt 0:01:10]} 22. Rb1 {[%emt 0:09:28]} Qa5 {[%emt 0:00:47]} 23. Rb5 {[%emt 0:00:38]} Qa6 {[%emt 0:00:49]} 24. Rb1 {[%emt 0:09:36]} Qa5 {[%emt 0:00:06]} 25. Qe3 {[%emt 0:00:09]} Bb4 {[%emt 0:03:21]} 26. Na2 {[%emt 0:02:30]} Bd2 {[%emt 0:11:52]} 27. Qe2 {[%emt 0:01:08]} b5 {[%emt 0:00:54]} 28. Nf3 {[%emt 0:00:22]} Bh6 {[%emt 0:00:34]} 29. g4 {[%emt 0:00:32]} g6 {[%emt 0:00:42]} 30. g5 {[%emt 0:00:11]} Bg7 {[%emt 0:00:05]} 31. c3 {[%emt 0:00:06]} Nc6 {[%emt 0:00:42]} 32. Nh2 {[%emt 0:03:42]} Rb8 {[%emt 0:01:42]} 33. Ng4 {[%emt 0:00:08]} b4 {[%emt 0:00:47]} 34. Nxb4 {[%emt 0:00:57]} Nxb4 {[%emt 0:00:08]} 35. cxb4 {[%emt 0:01:24]} Rxb4 {[%emt 0:00:05]} 36. Qd2 {[%emt 0:20:57]} Bf8 {[%emt 0:03:52]} 37. Nh6+ {[%emt 0:00:10]} Bxh6 {[%emt 0:03:02]} 38. Qxb4 {[%emt 0:00:11]} 1-0